[Event "Titled Tuesday Blitz August 1 Late 2023"]
[White "Sargsyan, Shant"]
[Black "Pinheiro, Iung Alicio de O."]
[WhiteFideId "13306766"]
[BlackFideId "2104350"]
[WhiteElo "2972"]
[BlackElo "2630"]
[Result "1-0"]
[Round "7"]
[TimeControl "180+1"]
[Date "2023.08.01"]
[WhiteClock "0:00:10"]
[BlackClock "0:00:05"]
[Board "15"]

1. c4 {[%clk 0:03:00]}  e5 {[%clk 0:02:57]} 2. g3 {[%clk 0:03:01]}  Nc6 {[%clk 0:02:55]} 3. Bg2 {[%clk 0:03:02]}  Bc5 {[%clk 0:02:50]} 4. Nc3 {[%clk 0:03:02]}  a6 {[%clk 0:02:50]} 5. e3 {[%clk 0:03:02]}  d6 {[%clk 0:02:49]} 6. Nge2 {[%clk 0:03:03]}  h5 {[%clk 0:02:43]} 7. d4 {[%clk 0:03:02]}  Ba7 {[%clk 0:02:41]} 8. h3 {[%clk 0:03:03]}  h4 {[%clk 0:02:32]} 9. g4 {[%clk 0:03:02]}  f5 {[%clk 0:02:32]} 10. gxf5 {[%clk 0:02:50]}  Bxf5 {[%clk 0:02:32]} 11. d5 {[%clk 0:02:51]}  Nce7 {[%clk 0:02:20]} 12. Be4 {[%clk 0:02:47]}  Qd7 {[%clk 0:02:15]} 13. Bxf5 {[%clk 0:02:46]}  Qxf5 {[%clk 0:02:01]} 14. Qa4+ {[%clk 0:02:46]}  Kf7 {[%clk 0:01:46]} 15. Bd2 {[%clk 0:02:45]}  Nf6 {[%clk 0:01:46]} 16. O-O-O {[%clk 0:02:44]}  b5 {[%clk 0:01:34]} 17. cxb5 {[%clk 0:02:41]}  axb5 {[%clk 0:01:34]} 18. Qxb5 {[%clk 0:02:41]}  Rhb8 {[%clk 0:01:26]} 19. Qc4 {[%clk 0:02:42]}  Bc5 {[%clk 0:01:23]} 20. e4 {[%clk 0:02:15]}  Qf3 {[%clk 0:01:14]} 21. a3 {[%clk 0:02:14]}  Rxa3 {[%clk 0:01:08]} 22. Kc2 {[%clk 0:02:02]}  Rab3 {[%clk 0:01:01]} 23. Bc1 {[%clk 0:01:54]}  R3b4 {[%clk 0:00:48]} 24. Qd3 {[%clk 0:01:54]}  Qxd3+ {[%clk 0:00:48]} 25. Kxd3 {[%clk 0:01:51]}  Ng6 {[%clk 0:00:47]} 26. f3 {[%clk 0:01:51]}  Nh5 {[%clk 0:00:47]} 27. Kc2 {[%clk 0:01:36]}  Ng3 {[%clk 0:00:45]} 28. Rh2 {[%clk 0:01:35]}  Nxe2 {[%clk 0:00:42]} 29. Rxe2 {[%clk 0:01:36]}  Bd4 {[%clk 0:00:41]} 30. Rh2 {[%clk 0:01:13]}  Nf4 {[%clk 0:00:41]} 31. Rdh1 {[%clk 0:00:54]}  g5 {[%clk 0:00:35]} 32. Nd1 {[%clk 0:00:52]}  Rc4+ {[%clk 0:00:32]} 33. Kb1 {[%clk 0:00:50]}  Kf6 {[%clk 0:00:30]} 34. Bxf4 {[%clk 0:00:49]}  exf4 {[%clk 0:00:30]} 35. Rc2 {[%clk 0:00:45]}  Rbb4 {[%clk 0:00:28]} 36. Rhh2 {[%clk 0:00:43]}  Bb6 {[%clk 0:00:26]} 37. Rhg2 {[%clk 0:00:39]}  Rd4 {[%clk 0:00:25]} 38. Nf2 {[%clk 0:00:38]}  Kg6 {[%clk 0:00:18]} 39. Ng4 {[%clk 0:00:30]}  Rb3 {[%clk 0:00:15]} 40. Rc3 {[%clk 0:00:18]}  Rd3 {[%clk 0:00:14]} 41. Rxb3 {[%clk 0:00:15]}  Rxb3 {[%clk 0:00:14]} 42. Nh2 {[%clk 0:00:15]}  Bd4 {[%clk 0:00:10]} 43. Rd2 {[%clk 0:00:15]}  Re3 {[%clk 0:00:10]} 44. Rxd4 {[%clk 0:00:15]}  Re2 {[%clk 0:00:08]} 45. Ng4 {[%clk 0:00:14]}  Re1+ {[%clk 0:00:07]} 46. Ka2 {[%clk 0:00:14]}  Rh1 {[%clk 0:00:08]} 47. Rc4 {[%clk 0:00:09]}  Rxh3 {[%clk 0:00:08]} 48. Rxc7 {[%clk 0:00:09]}  Rxf3 {[%clk 0:00:08]} 49. e5 {[%clk 0:00:09]}  dxe5 {[%clk 0:00:06]} 50. Nxe5+ {[%clk 0:00:09]}  Kh5 {[%clk 0:00:06]} 51. Nxf3 {[%clk 0:00:10]}  g4 {[%clk 0:00:07]} 52. Rh7+ {[%clk 0:00:09]}  Kg6 {[%clk 0:00:07]} 53. Rxh4 {[%clk 0:00:10]}  Kf5 {[%clk 0:00:05]} 54. Rxg4 {[%clk 0:00:08]}  Kxg4 {[%clk 0:00:06]} 55. Nd4 {[%clk 0:00:09]}  Kg5 {[%clk 0:00:04]} 56. Ne6+ {[%clk 0:00:09]}  Kf6 {[%clk 0:00:05]} 57. Nxf4 {[%clk 0:00:10]}  Ke5 {[%clk 0:00:05]} 58. Kb3 {[%clk 0:00:10]} 1-0


[Site "https://www.chess.com"]

[Event "Titled Tuesday Blitz August 1 Late 2023"]
[White "Manukyan, Sargis A."]
[Black "Hakobyan, Aram"]
[WhiteFideId "13303970"]
[BlackFideId "13306677"]
[WhiteElo "2665"]
[BlackElo "2923"]
[Result "0-1"]
[Round "7"]
[TimeControl "180+1"]
[Date "2023.08.01"]
[WhiteClock "0:00:21"]
[BlackClock "0:01:30"]
[Board "16"]

1. d4 {[%clk 0:03:00]}  Nf6 {[%clk 0:02:59]} 2. c4 {[%clk 0:03:01]}  a6 {[%clk 0:02:59]} 3. Nc3 {[%clk 0:03:00]}  b5 {[%clk 0:03:00]} 4. b3 {[%clk 0:02:54]}  e6 {[%clk 0:02:45]} 5. e3 {[%clk 0:02:52]}  b4 {[%clk 0:02:42]} 6. Nce2 {[%clk 0:02:50]}  Bb7 {[%clk 0:02:41]} 7. Ng3 {[%clk 0:02:50]}  h5 {[%clk 0:02:42]} 8. h4 {[%clk 0:02:50]}  Bd6 {[%clk 0:02:42]} 9. Nf3 {[%clk 0:02:36]}  Bxg3 {[%clk 0:02:41]} 10. fxg3 {[%clk 0:02:37]}  Ne4 {[%clk 0:02:39]} 11. Rh3 {[%clk 0:02:31]}  d6 {[%clk 0:02:37]} 12. Bd3 {[%clk 0:02:32]}  Nd7 {[%clk 0:02:38]} 13. Qc2 {[%clk 0:02:32]}  f5 {[%clk 0:02:35]} 14. Nd2 {[%clk 0:02:31]}  Ndf6 {[%clk 0:02:34]} 15. Nxe4 {[%clk 0:02:32]}  Bxe4 {[%clk 0:02:34]} 16. Bd2 {[%clk 0:02:27]}  a5 {[%clk 0:02:34]} 17. a4 {[%clk 0:02:21]}  O-O {[%clk 0:02:30]} 18. O-O-O {[%clk 0:02:20]}  Bxd3 {[%clk 0:02:23]} 19. Qxd3 {[%clk 0:02:20]}  Ne4 {[%clk 0:02:24]} 20. Rf1 {[%clk 0:02:20]}  Qf6 {[%clk 0:02:17]} 21. Kc2 {[%clk 0:02:16]}  c5 {[%clk 0:02:14]} 22. Rf3 {[%clk 0:02:06]}  Rac8 {[%clk 0:02:13]} 23. Rh1 {[%clk 0:02:03]}  d5 {[%clk 0:02:09]} 24. Kb1 {[%clk 0:01:56]}  dxc4 {[%clk 0:02:07]} 25. bxc4 {[%clk 0:01:56]}  Rfd8 {[%clk 0:02:02]} 26. d5 {[%clk 0:01:14]}  exd5 {[%clk 0:02:00]} 27. Rhf1 {[%clk 0:01:14]}  dxc4 {[%clk 0:01:34]} 28. Qxc4+ {[%clk 0:01:15]}  Qf7 {[%clk 0:01:34]} 29. Qxf7+ {[%clk 0:01:03]}  Kxf7 {[%clk 0:01:35]} 30. Rxf5+ {[%clk 0:01:04]}  Kg8 {[%clk 0:01:35]} 31. Be1 {[%clk 0:00:57]}  c4 {[%clk 0:01:35]} 32. Re5 {[%clk 0:00:49]}  c3 {[%clk 0:01:31]} 33. Kc2 {[%clk 0:00:40]}  Nd2 {[%clk 0:01:31]} 34. Rff5 {[%clk 0:00:21]}  b3+ {[%clk 0:01:30]} 0-1


[Site "https://www.chess.com"]

[Event "Titled Tuesday Blitz August 1 Late 2023"]
[White "Grigorov, Grigor"]
[Black "Ovchinnikov, Vsevolod"]
[WhiteFideId "2907313"]
[BlackFideId "24176842"]
[WhiteElo "2783"]
[BlackElo "2638"]
[Result "0-1"]
[Round "7"]
[TimeControl "180+1"]
[Date "2023.08.01"]
[WhiteClock "0:00:16"]
[BlackClock "0:00:05"]
[Board "18"]

1. Nf3 {[%clk 0:03:00]}  Nf6 {[%clk 0:02:59]} 2. c4 {[%clk 0:02:57]}  g6 {[%clk 0:03:00]} 3. b3 {[%clk 0:02:57]}  Bg7 {[%clk 0:03:00]} 4. Bb2 {[%clk 0:02:57]}  O-O {[%clk 0:03:00]} 5. g3 {[%clk 0:02:58]}  c6 {[%clk 0:03:00]} 6. Bg2 {[%clk 0:02:57]}  d5 {[%clk 0:03:01]} 7. O-O {[%clk 0:02:56]}  Be6 {[%clk 0:02:55]} 8. d3 {[%clk 0:02:55]}  Qc8 {[%clk 0:02:53]} 9. Nbd2 {[%clk 0:02:53]}  Bh3 {[%clk 0:02:50]} 10. Rc1 {[%clk 0:02:49]}  Bxg2 {[%clk 0:02:49]} 11. Kxg2 {[%clk 0:02:50]}  Rd8 {[%clk 0:02:47]} 12. cxd5 {[%clk 0:02:43]}  Nxd5 {[%clk 0:02:46]} 13. Bxg7 {[%clk 0:02:43]}  Kxg7 {[%clk 0:02:47]} 14. Qc2 {[%clk 0:02:42]}  Nd7 {[%clk 0:02:47]} 15. b4 {[%clk 0:02:40]}  a6 {[%clk 0:02:46]} 16. Qb2+ {[%clk 0:02:38]}  N5f6 {[%clk 0:02:40]} 17. a4 {[%clk 0:02:33]}  Qb8 {[%clk 0:02:40]} 18. Nc4 {[%clk 0:02:29]}  Kg8 {[%clk 0:02:35]} 19. Rc2 {[%clk 0:02:25]}  Rc8 {[%clk 0:02:03]} 20. Rfc1 {[%clk 0:02:21]}  Qa7 {[%clk 0:01:51]} 21. h3 {[%clk 0:02:08]}  Rd8 {[%clk 0:01:40]} 22. b5 {[%clk 0:01:59]}  axb5 {[%clk 0:01:38]} 23. axb5 {[%clk 0:02:00]}  c5 {[%clk 0:01:38]} 24. b6 {[%clk 0:01:56]}  Qa4 {[%clk 0:01:18]} 25. Qc3 {[%clk 0:01:52]}  Qc6 {[%clk 0:01:06]} 26. Kg1 {[%clk 0:01:46]}  Ra6 {[%clk 0:00:40]} 27. Rb2 {[%clk 0:01:33]}  Qe6 {[%clk 0:00:27]} 28. Nce5 {[%clk 0:01:24]}  Rxb6 {[%clk 0:00:17]} 29. Rxb6 {[%clk 0:01:19]}  Qxb6 {[%clk 0:00:18]} 30. Qc4 {[%clk 0:01:13]}  e6 {[%clk 0:00:15]} 31. Qh4 {[%clk 0:01:01]}  Re8 {[%clk 0:00:05]} 32. Qf4 {[%clk 0:00:51]}  Rf8 {[%clk 0:00:03]} 33. g4 {[%clk 0:00:40]}  Kg7 {[%clk 0:00:01]} 34. g5 {[%clk 0:00:39]}  Nd5 {[%clk 0:00:02]} 35. Nxd7 {[%clk 0:00:38]}  Nxf4 {[%clk 0:00:02]} 36. Nxb6 {[%clk 0:00:36]}  Nxe2+ {[%clk 0:00:02]} 37. Kf1 {[%clk 0:00:35]}  Nxc1 {[%clk 0:00:03]} 38. Ne5 {[%clk 0:00:35]}  Rd8 {[%clk 0:00:04]} 39. Nec4 {[%clk 0:00:26]}  Nxd3 {[%clk 0:00:04]} 40. Na5 {[%clk 0:00:26]}  Nf4 {[%clk 0:00:04]} 41. Ke1 {[%clk 0:00:24]}  Rd3 {[%clk 0:00:04]} 42. Nbc4 {[%clk 0:00:21]}  Rxh3 {[%clk 0:00:04]} 43. Nxb7 {[%clk 0:00:21]}  Rh5 {[%clk 0:00:04]} 44. Nbd6 {[%clk 0:00:19]}  Rxg5 {[%clk 0:00:04]} 45. Ne8+ {[%clk 0:00:19]}  Kf8 {[%clk 0:00:04]} 46. Nf6 {[%clk 0:00:20]}  Kg7 {[%clk 0:00:04]} 47. Ne8+ {[%clk 0:00:20]}  Kh6 {[%clk 0:00:05]} 48. Nf6 {[%clk 0:00:21]}  Nd5 {[%clk 0:00:05]} 49. Nd7 {[%clk 0:00:20]}  Nf4 {[%clk 0:00:04]} 50. Nce5 {[%clk 0:00:20]}  Kg7 {[%clk 0:00:04]} 51. Nc6 {[%clk 0:00:19]}  Rd5 {[%clk 0:00:04]} 52. Nde5 {[%clk 0:00:16]}  Nd3+ {[%clk 0:00:03]} 53. Nxd3 {[%clk 0:00:15]}  Rxd3 {[%clk 0:00:04]} 54. Ke2 {[%clk 0:00:16]}  Rd5 {[%clk 0:00:04]} 55. Ne7 {[%clk 0:00:16]}  Kf6 {[%clk 0:00:05]} 56. Nc8 {[%clk 0:00:16]}  h5 {[%clk 0:00:05]} 57. Nb6 {[%clk 0:00:16]}  h4 {[%clk 0:00:05]} 58. Nc4 {[%clk 0:00:16]}  h3 {[%clk 0:00:05]} 0-1


[Site "https://www.chess.com"]

[Event "Titled Tuesday Blitz August 1 Late 2023"]
[White "Golubka, Petro"]
[Black "ExchangeAB"]
[WhiteFideId "14114224"]
[WhiteElo "2755"]
[BlackElo "2503"]
[Result "1-0"]
[Round "7"]
[TimeControl "180+1"]
[Date "2023.08.01"]
[WhiteClock "0:00:48"]
[BlackClock "0:01:10"]
[Board "20"]

1. e4 {[%clk 0:01:07]}  c6 {[%clk 0:02:59]} 2. d3 {[%clk 0:01:04]}  d5 {[%clk 0:03:00]} 3. Nd2 {[%clk 0:01:03]}  Nd7 {[%clk 0:02:59]} 4. f4 {[%clk 0:01:03]}  e6 {[%clk 0:02:42]} 5. Ngf3 {[%clk 0:01:01]}  Bc5 {[%clk 0:02:39]} 6. d4 {[%clk 0:01:00]}  Bb6 {[%clk 0:02:37]} 7. c4 {[%clk 0:01:00]}  dxe4 {[%clk 0:02:36]} 8. Nxe4 {[%clk 0:01:00]}  Qe7 {[%clk 0:02:34]} 9. c5 {[%clk 0:00:51]}  Ba5+ {[%clk 0:02:34]} 10. Bd2 {[%clk 0:00:51]}  Bxd2+ {[%clk 0:02:33]} 11. Qxd2 {[%clk 0:00:52]}  Ngf6 {[%clk 0:02:28]} 12. Nd6+ {[%clk 0:00:52]}  Kf8 {[%clk 0:02:28]} 13. Ng5 {[%clk 0:00:52]}  h6 {[%clk 0:01:25]} 14. Ngxf7 {[%clk 0:00:51]}  Rg8 {[%clk 0:01:26]} 15. Ne5 {[%clk 0:00:48]}  Nxe5 {[%clk 0:01:10]} 16. fxe5 {[%clk 0:00:48]} 1-0


[Site "https://www.chess.com"]

[Event "Titled Tuesday Blitz August 1 Late 2023"]
[White "Domingo Nunez, Ruben"]
[Black "Aravindh, Chithambaram VR."]
[WhiteFideId "22245570"]
[BlackFideId "5072786"]
[WhiteElo "2575"]
[BlackElo "2883"]
[Result "0-1"]
[Round "7"]
[TimeControl "180+1"]
[Date "2023.08.01"]
[WhiteClock "0:00:01"]
[BlackClock "0:00:12"]
[Board "23"]

1. Nf3 {[%clk 0:02:57]}  g6 {[%clk 0:02:39]} 2. d4 {[%clk 0:02:54]}  Bg7 {[%clk 0:02:40]} 3. g3 {[%clk 0:02:54]}  b6 {[%clk 0:02:38]} 4. Bg2 {[%clk 0:02:54]}  Bb7 {[%clk 0:02:39]} 5. O-O {[%clk 0:02:55]}  Nf6 {[%clk 0:02:39]} 6. c4 {[%clk 0:02:53]}  O-O {[%clk 0:02:40]} 7. d5 {[%clk 0:02:50]}  Na6 {[%clk 0:02:37]} 8. Nc3 {[%clk 0:02:48]}  Nc5 {[%clk 0:02:38]} 9. Re1 {[%clk 0:02:45]}  e6 {[%clk 0:02:19]} 10. e4 {[%clk 0:02:31]}  d6 {[%clk 0:02:19]} 11. Qc2 {[%clk 0:02:16]}  Re8 {[%clk 0:02:11]} 12. Bd2 {[%clk 0:02:05]}  a5 {[%clk 0:02:10]} 13. b3 {[%clk 0:01:57]}  exd5 {[%clk 0:01:55]} 14. exd5 {[%clk 0:01:54]}  Nfe4 {[%clk 0:01:55]} 15. Rad1 {[%clk 0:01:32]}  Nxd2 {[%clk 0:01:54]} 16. Qxd2 {[%clk 0:01:32]}  Rxe1+ {[%clk 0:01:28]} 17. Rxe1 {[%clk 0:01:32]}  Bc8 {[%clk 0:01:28]} 18. Nd4 {[%clk 0:01:26]}  Bd7 {[%clk 0:01:28]} 19. Nc6 {[%clk 0:01:18]}  Qf6 {[%clk 0:01:27]} 20. Nb5 {[%clk 0:01:11]}  Na6 {[%clk 0:01:17]} 21. Re2 {[%clk 0:00:39]}  Re8 {[%clk 0:01:04]} 22. Rxe8+ {[%clk 0:00:35]}  Bxe8 {[%clk 0:01:05]} 23. Qe1 {[%clk 0:00:35]}  Bd7 {[%clk 0:01:05]} 24. h4 {[%clk 0:00:20]}  h5 {[%clk 0:01:04]} 25. Bf1 {[%clk 0:00:18]}  Bf8 {[%clk 0:00:43]} 26. Bd3 {[%clk 0:00:09]}  Qb2 {[%clk 0:00:27]} 27. Qe2 {[%clk 0:00:09]}  Qa1+ {[%clk 0:00:19]} 28. Kg2 {[%clk 0:00:08]}  Bh3+ {[%clk 0:00:16]} 29. Kh2 {[%clk 0:00:06]}  Bg4 {[%clk 0:00:17]} 30. Qd2 {[%clk 0:00:02]}  Bf3 {[%clk 0:00:15]} 31. g4 {[%clk 0:00:01]}  Qh1+ {[%clk 0:00:10]} 32. Kg3 {[%clk 0:00:02]}  Qg2+ {[%clk 0:00:10]} 33. Kf4 {[%clk 0:00:02]}  Qxg4+ {[%clk 0:00:11]} 34. Ke3 {[%clk 0:00:01]}  Bh6# {[%clk 0:00:12]} 0-1


[Site "https://www.chess.com"]

[Event "Titled Tuesday Blitz August 1 Late 2023"]
[White "Taboas Rodriguez, Daniel"]
[Black "Ibarra Jerez, Jose Carlos"]
[WhiteFideId "2208466"]
[BlackFideId "2226332"]
[WhiteElo "2575"]
[BlackElo "2877"]
[Result "0-1"]
[Round "7"]
[TimeControl "180+1"]
[Date "2023.08.01"]
[WhiteClock "0:00:00"]
[BlackClock "0:00:11"]
[Board "24"]

1. d4 {[%clk 0:03:00]}  Nf6 {[%clk 0:02:59]} 2. c4 {[%clk 0:03:00]}  e6 {[%clk 0:02:59]} 3. Nf3 {[%clk 0:02:59]}  b6 {[%clk 0:02:57]} 4. Nc3 {[%clk 0:02:58]}  Bb4 {[%clk 0:02:56]} 5. Qc2 {[%clk 0:02:59]}  Bb7 {[%clk 0:02:55]} 6. a3 {[%clk 0:03:00]}  Bxc3+ {[%clk 0:02:54]} 7. Qxc3 {[%clk 0:03:00]}  Ne4 {[%clk 0:02:53]} 8. Qc2 {[%clk 0:03:01]}  O-O {[%clk 0:02:53]} 9. g3 {[%clk 0:03:01]}  f5 {[%clk 0:02:46]} 10. Bg2 {[%clk 0:03:01]}  Qc8 {[%clk 0:02:44]} 11. O-O {[%clk 0:03:01]}  d6 {[%clk 0:02:43]} 12. b4 {[%clk 0:02:59]}  Nd7 {[%clk 0:02:43]} 13. Bb2 {[%clk 0:02:57]}  c5 {[%clk 0:02:42]} 14. Rad1 {[%clk 0:02:55]}  Qc7 {[%clk 0:02:41]} 15. Qd3 {[%clk 0:02:27]}  cxb4 {[%clk 0:02:16]} 16. axb4 {[%clk 0:02:27]}  b5 {[%clk 0:02:16]} 17. cxb5 {[%clk 0:02:12]}  Bd5 {[%clk 0:02:13]} 18. Nd2 {[%clk 0:01:37]}  Ndf6 {[%clk 0:02:12]} 19. Nxe4 {[%clk 0:01:33]}  fxe4 {[%clk 0:02:03]} 20. Qa3 {[%clk 0:01:25]}  Qb7 {[%clk 0:02:02]} 21. Qa5 {[%clk 0:01:09]}  Rfb8 {[%clk 0:01:55]} 22. Bc1 {[%clk 0:00:46]}  Qxb5 {[%clk 0:01:52]} 23. Bf4 {[%clk 0:00:46]}  Qd7 {[%clk 0:01:27]} 24. Rc1 {[%clk 0:00:33]}  Rb7 {[%clk 0:01:27]} 25. Rb1 {[%clk 0:00:19]}  Rab8 {[%clk 0:01:26]} 26. Rfc1 {[%clk 0:00:19]}  h6 {[%clk 0:01:18]} 27. h4 {[%clk 0:00:18]}  Nh5 {[%clk 0:01:14]} 28. Be3 {[%clk 0:00:17]}  Nf6 {[%clk 0:01:14]} 29. Bf4 {[%clk 0:00:16]}  Rb6 {[%clk 0:01:09]} 30. Rc3 {[%clk 0:00:14]}  Ba8 {[%clk 0:01:01]} 31. Rbc1 {[%clk 0:00:11]}  Nd5 {[%clk 0:00:55]} 32. Ra3 {[%clk 0:00:04]}  a6 {[%clk 0:00:38]} 33. Bd2 {[%clk 0:00:03]}  e3 {[%clk 0:00:31]} 34. fxe3 {[%clk 0:00:02]}  Rc6 {[%clk 0:00:12]} 35. Rxc6 {[%clk 0:00:01]}  Qxc6 {[%clk 0:00:11]} 36. Qxa6 {[%clk 0:00:00]}  Qc2 {[%clk 0:00:11]} 0-1


[Site "https://www.chess.com"]

[Event "Titled Tuesday Blitz August 1 Late 2023"]
[White "Hansen, Eric"]
[Black "Leebit02"]
[WhiteFideId "2606771"]
[WhiteElo "2840"]
[BlackElo "2570"]
[Result "1-0"]
[Round "7"]
[TimeControl "180+1"]
[Date "2023.08.01"]
[WhiteClock "0:00:15"]
[BlackClock "0:00:00"]
[Board "26"]

1. d4 {[%clk 0:03:00]}  Nf6 {[%clk 0:02:58]} 2. c4 {[%clk 0:03:01]}  e6 {[%clk 0:02:58]} 3. Nf3 {[%clk 0:03:01]}  d5 {[%clk 0:02:58]} 4. Nc3 {[%clk 0:03:01]}  c6 {[%clk 0:02:59]} 5. e3 {[%clk 0:03:01]}  Nbd7 {[%clk 0:02:58]} 6. Bd3 {[%clk 0:03:00]}  dxc4 {[%clk 0:02:58]} 7. Bxc4 {[%clk 0:03:00]}  b5 {[%clk 0:02:57]} 8. Be2 {[%clk 0:03:00]}  Bd6 {[%clk 0:02:53]} 9. O-O {[%clk 0:02:58]}  O-O {[%clk 0:02:52]} 10. b3 {[%clk 0:02:55]}  e5 {[%clk 0:02:38]} 11. Bb2 {[%clk 0:02:55]}  Qe7 {[%clk 0:02:29]} 12. Rc1 {[%clk 0:02:54]}  Bb7 {[%clk 0:02:26]} 13. a4 {[%clk 0:02:36]}  a6 {[%clk 0:02:26]} 14. Re1 {[%clk 0:02:27]}  Rfd8 {[%clk 0:02:09]} 15. Qc2 {[%clk 0:02:26]}  Rac8 {[%clk 0:02:06]} 16. Ne4 {[%clk 0:02:22]}  Nxe4 {[%clk 0:01:44]} 17. Qxe4 {[%clk 0:02:21]}  Nf6 {[%clk 0:01:44]} 18. Qh4 {[%clk 0:02:21]}  e4 {[%clk 0:01:40]} 19. Ne5 {[%clk 0:02:19]}  bxa4 {[%clk 0:01:34]} 20. bxa4 {[%clk 0:02:19]}  c5 {[%clk 0:01:34]} 21. Rb1 {[%clk 0:01:51]}  cxd4 {[%clk 0:01:25]} 22. exd4 {[%clk 0:01:38]}  Qe6 {[%clk 0:01:08]} 23. Ba1 {[%clk 0:01:35]}  Rc7 {[%clk 0:00:57]} 24. Nc4 {[%clk 0:01:33]}  Be7 {[%clk 0:00:45]} 25. Qg3 {[%clk 0:01:26]}  Nd5 {[%clk 0:00:31]} 26. Ne3 {[%clk 0:01:08]}  Qc8 {[%clk 0:00:21]} 27. Bg4 {[%clk 0:01:02]}  Qb8 {[%clk 0:00:15]} 28. Nf5 {[%clk 0:01:02]}  Bf8 {[%clk 0:00:14]} 29. Rxe4 {[%clk 0:00:54]}  Nf6 {[%clk 0:00:08]} 30. Ree1 {[%clk 0:00:51]}  Nxg4 {[%clk 0:00:08]} 31. Qxg4 {[%clk 0:00:51]}  Qc8 {[%clk 0:00:08]} 32. d5 {[%clk 0:00:20]}  f6 {[%clk 0:00:08]} 33. d6 {[%clk 0:00:15]}  Rf7 {[%clk 0:00:00]} 34. Nh6+ {[%clk 0:00:15]} 1-0


[Site "https://www.chess.com"]

[Event "Titled Tuesday Blitz August 1 Late 2023"]
[White "Volkov, Maksim"]
[Black "Prado Lobo, Jonas"]
[WhiteFideId "54123070"]
[BlackFideId "32050666"]
[WhiteElo "2701"]
[BlackElo "2551"]
[Result "1-0"]
[Round "7"]
[TimeControl "180+1"]
[Date "2023.08.01"]
[WhiteClock "0:02:27"]
[BlackClock "0:01:05"]
[Board "34"]

1. d4 {[%clk 0:03:00]}  Nf6 {[%clk 0:02:58]} 2. c4 {[%clk 0:03:01]}  c5 {[%clk 0:02:57]} 3. d5 {[%clk 0:03:00]}  b5 {[%clk 0:02:54]} 4. cxb5 {[%clk 0:03:01]}  a6 {[%clk 0:02:50]} 5. bxa6 {[%clk 0:03:02]}  g6 {[%clk 0:02:50]} 6. Nc3 {[%clk 0:03:02]}  Bg7 {[%clk 0:02:50]} 7. e4 {[%clk 0:03:02]}  O-O {[%clk 0:02:49]} 8. Nf3 {[%clk 0:03:02]}  Qa5 {[%clk 0:02:44]} 9. Bd2 {[%clk 0:02:58]}  Qb4 {[%clk 0:02:41]} 10. Qc2 {[%clk 0:02:55]}  Bxa6 {[%clk 0:01:44]} 11. Bxa6 {[%clk 0:02:53]}  Nxa6 {[%clk 0:01:44]} 12. a3 {[%clk 0:02:52]}  Qb8 {[%clk 0:01:39]} 13. O-O {[%clk 0:02:51]}  Ng4 {[%clk 0:01:35]} 14. Nd1 {[%clk 0:02:35]}  d6 {[%clk 0:01:25]} 15. Bc3 {[%clk 0:02:34]}  Qb5 {[%clk 0:01:22]} 16. Bxg7 {[%clk 0:02:29]}  Kxg7 {[%clk 0:01:21]} 17. Nc3 {[%clk 0:02:30]}  Qc4 {[%clk 0:01:05]} 18. b3 {[%clk 0:02:27]} 1-0


[Site "https://www.chess.com"]

[Event "Titled Tuesday Blitz August 1 Late 2023"]
[White "Tikhonov, Viacheslav"]
[Black "Schnaider, Ilan"]
[WhiteFideId "44196407"]
[BlackFideId "169013"]
[WhiteElo "2538"]
[BlackElo "2696"]
[Result "1-0"]
[Round "7"]
[TimeControl "180+1"]
[Date "2023.08.01"]
[WhiteClock "0:00:42"]
[BlackClock "0:00:01"]
[Board "35"]

1. e4 {[%clk 0:03:00]}  e5 {[%clk 0:02:58]} 2. Nf3 {[%clk 0:02:59]}  Nc6 {[%clk 0:02:58]} 3. Bc4 {[%clk 0:02:59]}  Nf6 {[%clk 0:02:58]} 4. Ng5 {[%clk 0:02:59]}  d5 {[%clk 0:02:58]} 5. exd5 {[%clk 0:03:00]}  Na5 {[%clk 0:02:58]} 6. Bb5+ {[%clk 0:03:01]}  c6 {[%clk 0:02:59]} 7. dxc6 {[%clk 0:03:02]}  bxc6 {[%clk 0:03:00]} 8. Be2 {[%clk 0:03:02]}  h6 {[%clk 0:02:59]} 9. Nh3 {[%clk 0:03:02]}  Qd5 {[%clk 0:02:57]} 10. O-O {[%clk 0:02:54]}  Bd6 {[%clk 0:02:48]} 11. Nc3 {[%clk 0:02:48]}  Qd4 {[%clk 0:02:46]} 12. d3 {[%clk 0:02:21]}  Qh4 {[%clk 0:02:44]} 13. Ne4 {[%clk 0:02:18]}  Be7 {[%clk 0:02:24]} 14. f4 {[%clk 0:01:53]}  Bxh3 {[%clk 0:02:07]} 15. g3 {[%clk 0:01:48]}  Bf5 {[%clk 0:01:06]} 16. gxh4 {[%clk 0:01:43]}  Nxe4 {[%clk 0:00:41]} 17. dxe4 {[%clk 0:01:30]}  Bxe4 {[%clk 0:00:42]} 18. Bf3 {[%clk 0:01:26]}  Bf5 {[%clk 0:00:28]} 19. Bd2 {[%clk 0:01:20]}  e4 {[%clk 0:00:15]} 20. Bg4 {[%clk 0:01:12]}  Bxg4 {[%clk 0:00:11]} 21. Qxg4 {[%clk 0:01:13]}  Nc4 {[%clk 0:00:11]} 22. Bc3 {[%clk 0:01:04]}  Ne3 {[%clk 0:00:08]} 23. Qxg7 {[%clk 0:01:01]}  Rf8 {[%clk 0:00:07]} 24. Qxh6 {[%clk 0:00:46]}  Kd7 {[%clk 0:00:03]} 25. Rad1+ {[%clk 0:00:43]}  Nxd1 {[%clk 0:00:04]} 26. Rxd1+ {[%clk 0:00:44]}  Kc7 {[%clk 0:00:04]} 27. Be5+ {[%clk 0:00:44]}  Kb6 {[%clk 0:00:03]} 28. Rd7 {[%clk 0:00:41]}  Bc5+ {[%clk 0:00:03]} 29. Bd4 {[%clk 0:00:39]}  Rad8 {[%clk 0:00:03]} 30. Bxc5+ {[%clk 0:00:38]}  Kxc5 {[%clk 0:00:03]} 31. Qd6+ {[%clk 0:00:39]}  Kb6 {[%clk 0:00:02]} 32. Rxd8 {[%clk 0:00:39]}  Rxd8 {[%clk 0:00:02]} 33. Qxd8+ {[%clk 0:00:40]}  Kb5 {[%clk 0:00:02]} 34. Qe7 {[%clk 0:00:41]}  e3 {[%clk 0:00:01]} 35. Qxe3 {[%clk 0:00:42]} 1-0


[Site "https://www.chess.com"]